bitfinex/quotes_SOLUSD_20250918
["timestamp","ask_amount","ask_price","bid_price","bid_amount"]
[1758168443597,39.59559401,246.39,246.38,0.03]
[1758168443801,0.28432314,246.37,246.31,0.1]
[1758168444020,1.97768961,246.32,246.31,0.1]
[1758168444612,4.68846032,246.32,246.31,0.1]
[1758168445025,8.74821998,246.32,246.31,0.1]
[1758168445187,9.45821998,246.32,246.31,0.1]
[1758168446618,6.03744927,246.32,246.31,0.1]
[1758168447910,36.85670104,246.39,246.31,0.18]
[1758168448121,1.97768961,246.35,246.31,0.18]
[1758168448430,1.97768961,246.35,246.32,0.08]
[1758168448730,1.97768961,246.34,246.32,0.08]
[1758168448900,1.97768961,246.34,246.31,3.70321029]
[1758168449102,1.97768961,246.34,246.32,0.08]
[1758168449305,1.97768961,246.34,246.31,3.70321029]
[1758168449306,1.97768961,246.37,246.33,0.08]
[1758168449519,1.97768961,246.37,246.34,0.08]
[1758168449936,1.97768961,246.36,246.33,10.15181999]
[1758168450118,1.97768961,246.36,246.33,0.08]
[1758168450318,1.97768961,246.36,246.33,4.13882713]
[1758168450905,4.05882713,246.38,246.33,4.13882713]
[1758168451104,1.97768961,246.36,246.33,4.13882713]
[1758168452129,4.05882713,246.38,246.33,4.13882713]
[1758168452334,1.97768961,246.37,246.34,0.08]
[1758168452522,1.97768961,246.37,246.33,4.05882713]
[1758168452847,1.97768961,246.37,246.33,4.13882713]
[1758168453231,1.97768961,246.36,246.33,4.05882713]
[1758168453536,4.058771,246.38,246.33,4.05882713]
[1758168453714,1.97768961,246.36,246.33,4.05882713]
[1758168454326,6.76538671,246.4,246.33,4.13882713]
[1758168454537,6.76538671,246.4,246.34,2.05768961]
[1758168454538,1.97768961,246.4,246.34,2.05768961]
[1758168454743,0.66,246.43,246.35,0.08]
[1758168454926,1.97768961,246.4,246.35,8.19833998]
[1758168455131,0.66,246.43,246.36,0.08]
[1758168455329,1.97768961,246.4,246.36,0.08]
[1758168455842,1.97768961,246.4,246.34,6.11699421]
[1758168456049,1.97768961,246.4,246.34,14.23533419]
[1758168456215,1.97768961,246.4,246.35,0.08]
[1758168456529,1.97768961,246.4,246.36,0.08]
[1758168457226,1.97768961,246.4,246.34,14.15533419]
[1758168457424,2.70683378,246.41,246.34,14.15533419]
[1758168457651,1.97768961,246.4,246.35,0.08]
[1758168457831,28.70683378,246.41,246.35,4.139219]
[1758168458031,28.70683378,246.41,246.36,0.08]
[1758168458032,1.97768961,246.41,246.36,0.08]
[1758168458338,1.97768961,246.41,246.37,0.08]
[1758168459352,1.97768961,246.41,246.36,12.17734039]
[1758168459521,1.97768961,246.41,246.36,12.25734039]
[1758168459841,1.97768961,246.41,246.36,8.19833998]
[1758168460024,1.97768961,246.39,246.36,8.11833998]
[1758168461034,1.97768961,246.39,246.34,4.05931047]
[1758168461434,2.63768961,246.4,246.35,8.11833998]
[1758168461815,1.97768961,246.41,246.35,8.11833998]
[1758168462327,1.97768961,246.41,246.36,0.08]
[1758168462520,4.68502403,246.42,246.37,0.08]
[1758168462712,1.97768961,246.41,246.35,10.17602959]
[1758168462919,1.97768961,246.4,246.35,12.17751758]
[1758168463233,2.63768961,246.4,246.35,12.17751758]
[1758168464138,2.63768961,246.4,246.35,8.11833998]
[1758168464339,0.66,246.39,246.35,7.61833998]
[1758168465241,13.59559401,246.35,246.31,0.13]
[1758168465430,1.97768961,246.32,246.31,0.13]
[1758168465623,1.97768961,246.33,246.31,0.13]
[1758168465834,1.26593251,246.34,246.31,0.13]
[1758168466218,1.92593251,246.33,246.31,0.13]
[1758168467347,1.26593251,246.33,246.31,0.13]
[1758168467523,1.26593251,246.32,246.31,0.13]
[1758168467931,1.26593251,246.33,246.31,0.13]
[1758168468128,27.62519045,246.36,246.31,0.13]
[1758168468129,1.26593251,246.34,246.31,0.13]
[1758168468346,1.26593251,246.33,246.31,0.13]
[1758168469645,1.92593251,246.33,246.31,0.13]
[1758168470225,1.26593251,246.33,246.31,0.13]
[1758168470626,1.26593251,246.35,246.31,4.18989724]
[1758168470828,1.32593251,246.35,246.31,4.18989724]
[1758168471138,1.26593251,246.34,246.31,4.18989724]
[1758168471329,0.06,246.35,246.31,4.18989724]
[1758168471641,1.32593251,246.35,246.31,4.18989724]
[1758168472346,1.26593251,246.33,246.31,0.13]
[1758168478128,0.66,246.32,246.31,0.13]
[1758168478335,1.92593251,246.32,246.31,0.13]
[1758168485049,4.63265125,246.32,246.31,0.13]
[1758168485253,1.92593251,246.32,246.31,0.13]
[1758168485636,6.98966255,246.32,246.31,0.13]
[1758168485843,8.69380687,246.32,246.31,0.13]
[1758168487157,7.42787436,246.32,246.31,0.13]
[1758168487336,8.69380687,246.32,246.31,0.13]
[1758168488656,4.63265125,246.32,246.31,0.13]
[1758168492561,18.22824526,246.32,246.31,0.13]
[1758168493067,23.2919753,246.32,246.31,0.13]
[1758168493965,54.6119753,246.32,246.31,0.13]
[1758168494747,80.6119753,246.32,246.31,0.13]
[1758168497262,80.89629844,246.32,246.31,0.13]
[1758168497443,26.0,246.29,246.28,0.03]
[1758168497765,58.58593251,246.29,246.28,0.03]
[1758168498073,59.29593251,246.29,246.28,0.03]
[1758168498459,63.35618668,246.29,246.28,0.03]
[1758168499642,66.05902541,246.29,246.28,0.03]
[1758168500776,66.05902541,246.29,246.18,5.03795934]
[1758168501072,1.26593251,246.23,246.18,3.77202683]
[1758168501479,1.26593251,246.23,246.18,5.03795934]
[1758168501649,1.26593251,246.24,246.18,5.03795934]
[1758168502041,1.26593251,246.23,246.18,3.77202683]
[1758168502266,1.26593251,246.23,246.18,5.03795934]
[1758168502585,0.2189,274.11,246.45,33.59559401]
[1758168502586,1e-08,246.46,246.45,33.59559401]
[1758168502784,0.06,246.53,246.52,26.28432314]
[1758168503078,0.06,246.53,246.52,89.88774522]
[1758168503246,4.11357658,246.7,246.53,25.41074053]
[1758168503446,1.26593251,246.68,246.56,0.28432314]
[1758168503678,1.26593251,246.68,246.57,3.01879469]
[1758168503853,2.07593251,246.69,246.58,4.2847272]
[1758168504175,1.26593251,246.68,246.58,14.54961807]
[1758168504351,1.32593251,246.67,246.58,4.2847272]
[1758168504550,1.32593251,246.67,246.58,37.9847272]
[1758168504768,1.32593251,246.67,246.58,36.71879469]
[1758168504971,1.32593251,246.67,246.58,37.9847272]
[1758168505270,0.06,246.67,246.58,36.69879469]
[1758168505572,0.06,246.67,246.58,37.9647272]
[1758168505573,1.26593251,246.66,246.58,37.9647272]
[1758168506176,1.26593251,246.66,246.58,34.94593251]
[1758168506356,1.26593251,246.66,246.59,1.26593251]
[1758168506950,1.26593251,246.66,246.59,34.90593251]
[1758168507385,0.06,246.67,246.59,34.90593251]
[1758168507571,1.26593251,246.66,246.59,34.90593251]
[1758168508491,1.26593251,246.65,246.59,34.90593251]
[1758168508791,0.06,246.67,246.59,34.90593251]
[1758168509084,0.06,246.62,246.6,1.26593251]
[1758168509262,0.06,246.62,246.59,34.90593251]
[1758168510568,0.06,246.62,246.61,1.26593251]
[1758168510771,0.06,246.62,246.6,1.26593251]
[1758168511171,0.06,246.62,246.61,33.56]
[1758168511366,0.06,246.62,246.61,33.52]
[1758168511574,0.06,246.62,246.61,33.5]
[1758168512363,0.06,246.62,246.6,33.5]
[1758168513388,0.06,246.62,246.59,1.26593251]
[1758168513389,4.11490396,246.62,246.59,1.26593251]
[1758168513582,4.11490396,246.62,246.6,33.46]
[1758168514491,4.11490396,246.62,246.61,33.42]
[1758168515382,4.11490396,246.62,246.59,1.26593251]
[1758168515570,4.11490396,246.62,246.57,4.05475222]
[1758168515770,4.11490396,246.62,246.58,34.66593251]
[1758168516082,4.11490396,246.62,246.59,33.4]
[1758168518406,4.11490396,246.62,246.6,33.36]
[1758168519974,4.11490396,246.62,246.61,33.34]
[1758168520192,4.11490396,246.62,246.58,1.26593251]
[1758168520406,4.11490396,246.62,246.61,33.3]
[1758168522493,4.11490396,246.62,246.61,33.26]
[1758168523486,16.21788942,246.62,246.58,33.22]
[1758168523688,1.26593251,246.6,246.58,33.22]
[1758168523875,1.96593251,246.6,246.58,33.22]
[1758168524580,4.05531448,246.59,246.58,33.22]
[1758168525384,4.05531448,246.59,246.58,33.2]
[1758168530286,4.05531448,246.59,246.58,33.12]
[1758168531499,4.05531448,246.59,246.58,33.1]
[1758168531807,6.72883524,246.59,246.57,33.08]
[1758168532004,6.72883524,246.59,246.56,0.03]
[1758168532005,2.67352076,246.58,246.56,0.03]
[1758168532211,0.7,246.58,246.57,33.08]
[1758168532390,0.7,246.58,246.56,33.09]
[1758168532593,0.7,246.57,246.56,33.09]
[1758168532910,0.7,246.57,246.56,0.03]
[1758168533410,2.67352076,246.57,246.56,0.03]
[1758168533581,6.72916418,246.57,246.56,0.03]
[1758168541900,4.75564342,246.57,246.56,0.03]
[1758168542113,6.72916418,246.57,246.56,0.03]
[1758168547807,6.72916418,246.57,246.53,0.03]
[1758168547808,16.86827274,246.57,246.53,0.03]
[1758168548116,1.97352076,246.54,246.53,0.03]
[1758168548515,2.65352076,246.54,246.53,0.03]
[1758168548819,6.70965769,246.54,246.53,0.03]
[1758168551210,30.73613693,246.54,246.53,0.03]
[1758168551408,32.70965769,246.54,246.53,0.03]
[1758168554419,32.70965769,246.54,246.41,0.28432314]
[1758168554420,63.13068469,246.54,246.41,0.28432314]
[1758168554605,1.97352076,246.48,246.41,0.28432314]
[1758168554800,1.97352076,246.47,246.41,0.28432314]
[1758168555207,0.68,246.5,246.41,0.28432314]
[1758168555500,1.97352076,246.47,246.41,0.28432314]
[1758168555698,1.97352076,246.46,246.41,0.28432314]
[1758168556126,1.97352076,246.46,246.41,12.45184551]
[1758168556503,4.05761817,246.45,246.41,12.45184551]
[1758168557103,6.03113893,246.45,246.41,12.45184551]
[1758168557926,14.19993508,246.48,246.41,12.45184551]
[1758168558125,1.97352076,246.45,246.41,12.45184551]
[1758168558919,1.97352076,246.45,246.41,45.09184551]
[1758168559123,4.05778282,246.44,246.41,45.09184551]
[1758168559626,4.05778282,246.44,246.41,45.07184551]
[1758168560135,10.14281077,246.48,246.41,12.45184551]
[1758168560136,0.68,246.46,246.41,12.45184551]
[1758168560426,1.97352076,246.46,246.41,45.07184551]
[1758168560612,16.17345584,246.48,246.41,47.04536627]
[1758168560805,14.19993508,246.48,246.42,32.6]
[1758168561926,14.19993508,246.48,246.41,12.45184551]
[1758168562125,14.19993508,246.48,246.42,32.6]
[1758168562426,40.19820696,246.51,246.41,12.48184551]
[1758168562722,0.68,246.5,246.43,32.58]
[1758168562917,0.68,246.49,246.43,32.58]
[1758168563426,4.05712431,246.48,246.43,32.58]
[1758168563604,4.73712431,246.48,246.43,32.58]
[1758168564033,4.05712431,246.48,246.43,32.58]
[1758168564523,4.05712431,246.48,246.44,32.56]
[1758168564718,4.05712431,246.48,246.45,32.56]
[1758168565120,5.05689713,246.5,246.47,1.97352076]
[1758168565326,5.05689713,246.5,246.49,1.97352076]
[1758168568134,5.05689713,246.5,246.48,1.97352076]
[1758168569319,5.05689713,246.5,246.49,1.97352076]
[1758168570730,5.05689713,246.5,246.46,0.69006849]
[1758168571313,5.05689713,246.5,246.49,1.97352076]
[1758168572511,5.05689713,246.5,246.49,32.46]
[1758168574739,5.05689713,246.5,246.49,34.43352076]
[1758168575227,5.05689713,246.5,246.49,1.97352076]
[1758168575436,5.05689713,246.5,246.49,34.39352076]
[1758168578553,1.0,246.5,246.49,34.39352076]
[1758168579540,1.0,246.5,246.49,34.33352076]
[1758168580734,1.0,246.5,246.49,34.36352076]
[1758168581441,1.72,246.5,246.49,34.36352076]
[1758168582448,1.0,246.5,246.49,34.36352076]
[1758168584152,1.0,246.5,246.49,2.00352076]
[1758168584347,1.0,246.5,246.49,34.28352076]
[1758168587844,1.0,246.5,246.49,33.57366409]
[1758168594852,1.0,246.5,246.49,33.85798723]
[1758168596058,1.0,246.5,246.49,34.2636832]
[1758168602748,1.68,246.5,246.49,1.69936006]
[1758168603042,1.68,246.5,246.49,0.03]
[1758168603266,1.68,246.5,246.49,32.11]
[1758168604163,1.68,246.5,246.49,32.09]
[1758168608464,1.68,246.5,246.49,32.05]
[1758168609266,1.68,246.5,246.49,43.51401904]
[1758168610161,1.0,246.5,246.49,43.51401904]
[1758168610369,1.0,246.5,246.49,44.77768313]
[1758168610549,1.0,246.5,246.49,45.1833791]
[1758168611542,1.0,246.5,246.49,44.77768313]
[1758168611967,1.0,246.5,246.49,45.1833791]
[1758168612459,1.0,246.5,246.49,45.46770224]
[1758168612666,1.0,246.5,246.49,44.20403815]
[1758168612868,1.0,246.5,246.49,45.46770224]
[1758168615671,1.0,246.5,246.49,13.44770224]
[1758168615851,1.0,246.5,246.49,45.42770224]
[1758168619177,1.0,246.5,246.49,45.36770224]
[1758168620964,1.0,246.5,246.49,13.44770224]
[1758168621167,1.68,246.5,246.49,45.34770224]
[1758168622248,1.68,246.5,246.49,13.44770224]
[1758168622449,1.68,246.5,246.49,45.34770224]
[1758168624177,1.0,246.5,246.49,13.44770224]
[1758168624380,1.68,246.5,246.49,45.32770224]
[1758168625075,1.0,246.5,246.49,45.32770224]
[1758168626566,1.68,246.5,246.49,45.32770224]
[1758168628187,1.0,246.5,246.49,60.18696034]
[1758168628488,1.0,246.5,246.49,63.97795261]
[1758168632085,1.0,246.5,246.49,144.77795261]
[1758168632280,1.0,246.5,246.49,144.37225664]
[1758168635972,1.0,246.5,246.49,150.08792257]
[1758168638490,1.0,246.5,246.49,118.20792257]
[1758168638694,1.66,246.5,246.49,58.17327714]
[1758168638997,1.66,246.5,246.49,69.31401904]
[1758168639493,1.66,246.5,246.49,69.59834218]
[1758168640307,1.66,246.5,246.49,70.86200627]
[1758168643106,1.66,246.5,246.49,69.59834218]
[1758168645898,1.66,246.5,246.49,37.77834218]
[1758168646118,1.66,246.5,246.49,58.07432314]
[1758168647204,1.66,246.5,246.49,62.13082799]
[1758168647901,2.03470269,246.54,246.49,58.07432314]
[1758168648283,2.03470269,246.54,246.49,62.13082799]
[1758168649182,2.03470269,246.54,246.49,58.07432314]
[1758168649383,0.06,246.51,246.49,58.07432314]
[1758168650001,0.66,246.5,246.49,60.10902583]
[1758168650796,0.66,246.5,246.49,31.79]
[1758168651104,0.66,246.5,246.49,32.07432314]
[1758168659523,4.79665857,246.51,246.49,32.07432314]
[1758168660018,0.68,246.5,246.49,32.07432314]
[1758168661423,0.06,246.51,246.49,32.07432314]
[1758168661615,0.74,246.51,246.49,32.07432314]
[1758168662907,0.06,246.51,246.5,41.85461984]
[1758168663091,0.06,246.51,246.5,74.63029935]
[1758168663294,0.06,246.51,246.5,76.25357715]
[1758168665409,0.06,246.51,246.5,50.25357715]
[1758168665616,0.06,246.51,246.5,52.22827984]
[1758168666123,0.06,246.51,246.5,133.02827984]
[1758168666420,0.06,246.51,246.5,132.62260033]
[1758168668417,0.06,246.51,246.5,100.90260033]
[1758168668610,0.06,246.51,246.5,132.62260033]
[1758168668806,0.06,246.51,246.5,100.90260033]
[1758168669012,0.06,246.51,246.5,132.62260033]
[1758168674533,0.06,246.51,246.5,138.31826626]
[1758168679231,0.06,246.54,246.53,39.87991715]
[1758168679440,0.06,246.54,246.53,154.76024998]
[1758168679624,0.06,246.54,246.53,154.35461984]
[1758168680646,0.06,246.54,246.53,160.03380395]
[1758168685320,0.06,246.54,246.53,158.05910126]
[1758168685536,0.06,246.54,246.53,160.03380395]
[1758168692649,0.06,246.54,246.53,160.68380395]
[1758168693027,0.06,246.54,246.53,160.03380395]
[1758168693727,0.06,246.54,246.53,168.38417257]
[1758168693958,0.06,246.56,246.55,15.85461984]
[1758168694256,0.06,246.56,246.55,47.94021708]
[1758168694433,0.06,246.56,246.55,48.60021708]
[1758168694632,0.06,246.56,246.55,50.22296805]
[1758168696141,0.06,246.56,246.55,54.27894046]
[1758168696449,0.06,246.56,246.55,21.93894046]
[1758168696632,0.06,246.56,246.55,53.61894046]
[1758168699262,0.06,246.56,246.55,54.27894046]
[1758168699453,0.06,246.56,246.55,53.61894046]
[1758168703343,0.73,246.56,246.55,53.61894046]
[1758168706559,0.06,246.56,246.55,53.61894046]
[1758168707446,0.73,246.56,246.55,53.61894046]
[1758168707751,0.73,246.56,246.55,21.93894046]
[1758168707956,0.73,246.56,246.55,53.61894046]
[1758168708358,0.06,246.56,246.55,53.61894046]
[1758168709141,0.73,246.56,246.55,53.61894046]
[1758168709842,0.73,246.56,246.55,52.9065829]
[1758168710061,0.06,246.56,246.55,52.9065829]
[1758168710241,0.06,246.56,246.55,52.8865829]
[1758168712663,0.06,246.56,246.55,53.5465829]
[1758168712844,0.06,246.56,246.55,52.8865829]
[1758168716861,0.73,246.56,246.55,52.8865829]
[1758168717058,0.06,246.56,246.55,52.8865829]
[1758168717950,0.06,246.56,246.55,53.5465829]
[1758168718151,0.06,246.56,246.55,52.8865829]
[1758168719368,0.77,246.56,246.55,52.8865829]
[1758168720377,0.06,246.56,246.55,52.8865829]
[1758168720674,0.77,246.56,246.55,52.8865829]
[1758168722084,0.06,246.56,246.55,52.8865829]
[1758168722460,0.77,246.56,246.55,52.8865829]
[1758168723294,0.06,246.56,246.55,52.8865829]
[1758168724774,0.06,246.56,246.55,21.2265829]
[1758168724957,0.06,246.56,246.55,52.8665829]
[1758168727066,0.06,246.56,246.55,53.5265829]
[1758168727778,0.06,246.56,246.55,52.8665829]
[1758168728469,0.06,246.56,246.55,59.24224883]
[1758168728664,0.06,246.59,246.58,26.0]
[1758168728869,0.06,246.59,246.58,74.4501553]
[1758168729066,0.06,246.59,246.58,155.2501553]
[1758168729265,0.06,246.59,246.58,154.84460741]
[1758168729469,0.06,246.59,246.58,156.4671609]
[1758168730191,0.06,246.59,246.58,160.52263985]
[1758168731500,0.06,246.59,246.58,164.30967524]
[1758168731672,0.06,246.61,246.59,13.87991715]
[1758168731985,0.06,246.61,246.6,52.2371578]
[1758168732368,0.06,246.61,246.6,59.5752456]
[1758168732800,0.06,246.62,246.61,13.87991715]
[1758168733002,0.06,246.65,246.63,39.87991715]
[1758168733287,0.06,246.65,246.63,73.18772795]
[1758168734078,0.06,246.65,246.63,78.86467499]
[1758168734489,0.72,246.65,246.63,78.86467499]
[1758168734886,0.72,246.65,246.63,84.58034092]
[1758168735297,0.72,246.64,246.63,84.58034092]
[1758168736790,0.06,246.64,246.63,84.58034092]
[1758168737001,0.06,246.64,246.63,86.51359575]
[1758168737199,0.06,246.64,246.63,86.10813008]
[1758168744905,0.06,246.64,246.63,166.90813008]
[1758168748186,0.06,246.64,246.63,140.90813008]
[1758168748605,0.06,246.65,246.63,140.90813008]
[1758168748803,0.1,246.69,246.67,13.87991715]
[1758168748990,0.1,246.69,246.68,45.47991715]
[1758168749409,0.1,246.69,246.68,47.10187851]
[1758168749709,0.1,246.69,246.68,137.67137936]
[1758168753029,0.16,246.69,246.68,137.67137936]
[1758168754814,0.1,246.71,246.69,0.28432314]
[1758168754987,0.06,246.72,246.7,17.93342343]
[1758168755194,0.06,246.72,246.71,51.19558308]
[1758168755519,0.06,246.72,246.71,53.22248411]
[1758168758622,0.06,246.72,246.71,53.88248411]
[1758168758796,0.1,246.74,246.72,17.93309484]
[1758168758999,0.1,246.74,246.72,104.44876077]
[1758168759408,0.82,246.74,246.72,106.07032761]
[1758168760023,0.1,246.74,246.72,106.07032761]
[1758168760193,0.82,246.74,246.72,106.07032761]
[1758168760399,0.1,246.74,246.72,106.07032761]
[1758168760709,0.78,246.73,246.72,106.07032761]
[1758168761012,0.78,246.73,246.72,137.65032761]
[1758168761623,0.06,246.73,246.72,137.65032761]
[1758168766094,0.78,246.73,246.72,137.65032761]
[1758168766826,0.78,246.73,246.72,106.07032761]
[1758168767122,0.78,246.73,246.72,137.65032761]
[1758168767703,0.06,246.73,246.72,137.65032761]
[1758168768502,0.78,246.73,246.72,137.63032761]
[1758168768718,0.06,246.73,246.72,137.63032761]
[1758168769622,0.78,246.73,246.72,137.63032761]
[1758168769831,0.06,246.73,246.72,137.63032761]
[1758168771111,0.06,246.73,246.72,106.07032761]
[1758168771315,0.06,246.73,246.72,137.63032761]
[1758168771618,0.78,246.73,246.72,137.63032761]
[1758168772726,0.06,246.73,246.72,137.63032761]
[1758168772934,0.06,246.73,246.72,131.91466168]
[1758168773313,0.78,246.73,246.72,100.35466168]
[1758168773519,0.78,246.73,246.72,131.91466168]
[1758168774831,0.78,246.73,246.72,137.63032761]
[1758168777630,0.78,246.73,246.72,106.07032761]
[1758168777819,0.78,246.73,246.72,137.63032761]
[1758168780517,0.06,246.73,246.72,137.61032761]
[1758168781631,0.06,246.73,246.72,106.07032761]
[1758168781838,0.06,246.73,246.72,137.61032761]
[1758168782012,0.06,246.73,246.72,106.07032761]
[1758168782412,0.06,246.73,246.72,137.61032761]
[1758168783238,0.06,246.73,246.72,106.07032761]
[1758168783446,0.06,246.73,246.72,137.61032761]
[1758168785340,0.06,246.73,246.72,106.07032761]
[1758168785526,0.06,246.73,246.72,137.61032761]
[1758168786515,0.06,246.73,246.72,106.07032761]
[1758168786516,0.74,246.73,246.72,106.07032761]
[1758168786815,0.74,246.73,246.72,137.61032761]
[1758168787738,0.74,246.73,246.72,137.64032761]
[1758168789134,0.06,246.73,246.72,137.64032761]
[1758168789429,0.74,246.73,246.72,31.57]
[1758168789634,0.74,246.73,246.72,0.03]
[1758168789935,0.74,246.73,246.72,31.57]
[1758168790526,0.74,246.73,246.72,0.31432314]
[1758168790731,0.74,246.73,246.72,31.85432314]
[1758168791817,0.74,246.73,246.72,0.03]
[1758168792017,0.74,246.73,246.72,31.55]
[1758168792429,0.74,246.73,246.72,0.03]
[1758168792617,0.74,246.73,246.72,31.55]
[1758168795342,0.74,246.73,246.72,31.83432314]
[1758168795514,0.74,246.73,246.72,47.05187851]
[1758168800353,0.74,246.73,246.72,33.4562845]
[1758168801538,0.74,246.73,246.72,1.9362845]
[1758168801743,0.74,246.73,246.72,33.4562845]
[1758168802340,0.74,246.73,246.72,31.55]
[1758168802519,0.74,246.73,246.72,0.03]
[1758168802718,0.74,246.73,246.72,31.55]
[1758168804024,0.74,246.73,246.72,0.03]
[1758168804328,0.74,246.73,246.72,31.55]
[1758168811345,0.74,246.73,246.72,0.03]
[1758168811521,0.74,246.73,246.72,31.55]
[1758168811728,0.74,246.73,246.72,0.03]
[1758168812246,2.70941102,246.73,246.72,31.53]
[1758168813238,0.74,246.73,246.72,31.53]
[1758168827448,0.74,246.73,246.72,0.03]
[1758168827764,0.74,246.73,246.72,31.51]
[1758168834951,0.74,246.73,246.72,0.03]
[1758168838177,2.00154917,246.73,246.72,0.03]
[1758168839156,0.74,246.73,246.72,0.03]
[1758168844778,0.06,246.73,246.72,0.69]
[1758168845561,0.06,246.73,246.72,40.56991715]
[1758168845757,0.06,246.73,246.72,42.19181274]
[1758168849078,0.06,246.73,246.72,73.65181274]
[1758168850279,0.06,246.73,246.72,42.19181274]
[1758168850578,0.06,246.73,246.72,73.63181274]
[1758168853561,0.1,246.74,246.72,73.63181274]
[1758168853562,0.1,246.74,246.73,4.33733655]
[1758168853762,0.1,246.74,246.73,4.99733655]
[1758168855186,0.1,246.74,246.73,20.21456314]
[1758168856963,0.06,246.75,246.74,13.87991715]
[1758168857169,0.06,246.75,246.74,45.97991715]
[1758168858275,0.06,246.75,246.74,47.60148399]
[1758168859690,0.06,246.75,246.74,16.16148399]
[1758168859891,0.06,246.75,246.74,47.58148399]
[1758168860089,0.06,246.76,246.75,17.93260205]
[1758168860304,0.06,246.76,246.75,18.59260205]
[1758168861002,0.1,246.89,246.81,26.0]
[1758168861171,0.1,246.89,246.82,45.29991715]
[1758168861371,0.68,246.88,246.82,45.29991715]
[1758168861674,0.68,246.87,246.82,45.29991715]
[1758168861892,0.68,246.86,246.84,0.28432314]
[1758168862080,0.68,246.86,246.83,1.62123822]
[1758168862081,0.68,246.86,246.85,31.42]
[1758168869418,4.73093331,246.86,246.85,31.4]
[1758168871611,4.79093331,246.86,246.85,31.4]
[1758168873595,6.05248248,246.86,246.85,31.4]
[1758168874296,4.79093331,246.86,246.85,31.4]
[1758168875803,4.79093331,246.86,246.85,22.18370951]
[1758168877008,6.05248248,246.86,246.73,0.03]
[1758168877217,6.05248248,246.86,246.74,31.4]
[1758168877218,1.26154917,246.77,246.74,31.4]
[1758168877592,0.67,246.76,246.74,31.4]
[1758168877792,0.67,246.75,246.74,31.68432314]
[1758168878309,0.67,246.75,246.74,31.4]
[1758168879089,0.67,246.75,246.74,26.0]
[1758168879294,0.67,246.75,246.74,57.38]
[1758168879608,1.93154917,246.75,246.74,31.38]
[1758168880392,5.98427215,246.75,246.73,0.03]
[1758168880700,1.26154917,246.74,246.73,31.41]
[1758168880902,1.93154917,246.74,246.73,31.41]
[1758168885225,0.67,246.74,246.73,0.03]
[1758168885422,1.93154917,246.74,246.73,0.03]
[1758168888327,0.67,246.74,246.73,0.03]
[1758168888503,1.93154917,246.74,246.73,0.03]
[1758168891425,1.93154917,246.74,246.72,0.03]
[1758168891426,4.05301341,246.73,246.72,1e-08]
[1758168891630,32.57611175,246.73,246.72,1e-08]
[1758168891924,33.24611175,246.73,246.72,1e-08]
[1758168892330,33.60737939,246.73,246.72,1e-08]
[1758168892524,34.86892856,246.73,246.72,1e-08]
[1758168893916,67.67148984,246.73,246.72,1e-08]
[1758168895526,65.69866003,246.73,246.72,1e-08]
[1758168896421,67.67148984,246.73,246.72,1e-08]
[1758168896721,65.69866003,246.73,246.72,1e-08]
[1758168901023,26.0,246.7,246.59,0.69]
[1758168901216,1.97282981,246.65,246.59,0.03]
[1758168901613,6.7371578,246.65,246.59,0.03]
[1758168902327,8.36036973,246.65,246.59,0.03]
[1758168902507,8.36036973,246.65,246.6,0.66]
[1758168902828,6.0271578,246.65,246.6,0.66]
[1758168903017,6.6871578,246.65,246.6,0.66]
[1758168903212,6.6871578,246.65,246.59,0.03]
[1758168903527,6.6871578,246.65,246.59,0.69]
[1758168904510,6.6871578,246.65,246.59,0.03]
[1758168906819,6.6871578,246.65,246.59,0.69]
[1758168907146,38.0671578,246.65,246.59,0.69]